fUST/lending_fUST_20260204
["ID","MTS","AMOUNT","RATE_DAILY","PERIOD"]
[404473917,1770177043818,-1709.86448075,0.00039932,7]
[404473919,1770177043830,-732.02101207,0.00039932,7]
[404473920,1770177043872,-12171.16865794,0.00039932,7]
[404473921,1770177043884,-296.04,0.00039932,7]
[404473922,1770177043895,-391.10224058,0.00039932,7]
[404473941,1770177045990,-6.6090724,0.00039932,7]
[404473942,1770177046043,-815.59368047,0.00039932,7]
[404473943,1770177209892,50098.0,0.00039932,20]
[404473948,1770178026131,-462.34533285,0.00026747,2]
[404473949,1770178145113,-189.62551925,0.00024953,2]
[404473950,1770178145134,-300.0,0.00026746,2]
[404473951,1770178145157,-9437.92042446,0.00026747,2]
[404473952,1770178145177,-625.70498662,0.00026847,2]
[404473953,1770178145319,-1398.1833,0.0003222,30]
[404473954,1770178145339,-458.0,0.00035,30]
[404473955,1770178145362,-9437.92042446,0.00043066,2]
[404473956,1770178145380,-220.53,0.000431,2]
[404473957,1770178145398,-159.70375634,0.000431,66]
[404473958,1770178145417,-3265.73932241,0.00045313,2]
[404473959,1770178204143,382.47853526,0.00043421,2]
[404473960,1770178209319,640.27756558,0.00026849,2]
[404473961,1770178209343,288.33379415,0.00026849,2]
[404473992,1770178231780,-7984.7638115,0.00026849,2]
[404473993,1770178231790,-8179.61767021,0.00039928,7]
[404473996,1770178231800,-2948.39845517,0.00043165,2]
[404474010,1770178237875,-462.31597032,0.00043165,2]
[404474013,1770178238035,-2482.10465906,0.00043165,2]
[404474238,1770178246144,-3020.55608668,0.00043165,2]
[404474239,1770178246155,-182.30405913,0.00045213,120]
[404474240,1770178246165,-219.3523449,0.00045486,3]
[404474241,1770178246178,-159.397487,0.00045513,2]
[404474242,1770178246188,-3791.06881375,0.00045513,2]
[404474243,1770178325308,162.0,0.00016,2]
[404474245,1770178394319,500.0,0.00013273,2]
[404474246,1770178396537,500.52627807,0.00013699,2]
[404474249,1770179081077,-1507.88999997,0.00032273,2]
[404474250,1770179083815,154.0,0.00030137,120]
[404474251,1770179084362,-507.89,0.00032273,2]
[404474252,1770179086498,-507.89,0.00032273,2]
[404474253,1770179088086,-507.89,0.00032273,2]
[404474254,1770179089583,-432.7937252,0.00032273,2]
[404474255,1770179093161,-177.0,0.00032273,2]
[404474256,1770179095742,-2339.86329979,0.00032273,2]
[404474257,1770179097262,-3502.59187766,0.00032273,2]
[404474258,1770179098803,-704.61722268,0.00032273,2]
[404474259,1770179101961,-185.0,0.00032273,2]
[404474260,1770179104029,-2106.53761261,0.00032273,2]
[404474264,1770179201085,-1590.19435344,0.00032273,2]
[404474265,1770179204299,-1000.0,0.00032273,2]
[404474266,1770179208517,-903.06555515,0.00032273,2]
[404474267,1770179210005,-2000.0,0.00032273,2]
[404474268,1770179211536,-496.09880144,0.00032273,2]
[404474269,1770179249134,-514.47932839,0.00032273,2]
[404474270,1770179320494,-155.0,0.00018,30]
[404474271,1770179320516,-1411.92562657,0.0002,20]
[404474272,1770179323545,-507.89,0.0002,20]
[404474273,1770179327964,-1000.0,0.0002,20]
[404474274,1770179330614,-903.06555515,0.0002,20]
[404474275,1770179332050,-507.89,0.0002,20]
[404474276,1770179333490,-1590.19435344,0.0002,20]
[404474277,1770179338492,-2000.0,0.0002,20]
[404474278,1770179340065,-496.09880144,0.0002,20]
[404474279,1770179342071,-177.0,0.0002,20]
[404474281,1770179344239,-432.7937252,0.0002,20]
[404474282,1770179348156,-3502.59187766,0.0002,20]
[404474283,1770179350325,-507.89,0.0002,20]
[404474284,1770179351108,-27859.38528653,0.0002,20]
[404474285,1770179351127,-20307.83273357,0.00024,7]
[404474286,1770179351146,-741.08018794,0.00024,7]
[404474287,1770179351168,-5411.6056691,0.00032273,2]
[404474288,1770179354148,-803.3955485,0.0003611,2]
[404474289,1770179354167,-166.63940115,0.00037228,2]
[404474290,1770179354186,-12.2744011,0.00037228,2]
[404474291,1770179356621,1051.97923997,0.000239,2]
[404474292,1770179367097,-2063.43399257,0.000239,2]
[404474293,1770179367117,-287.67652098,0.00037228,2]
[404474294,1770179367135,-1500.0,0.00037524,2]
[404474295,1770179367158,-1399.16435659,0.00039823,20]
[404474296,1770179367179,-151.09820699,0.00039823,120]
[404474297,1770179367199,-8632.23892902,0.0004,30]
[404474298,1770179367221,-803.3955485,0.00040503,2]
[404474299,1770179367244,-182.30405913,0.00041045,120]
[404474300,1770179367262,-150.0,0.00041096,10]
[404474301,1770179367282,-4799.3375212,0.00041145,2]
[404474302,1770179367300,-1000.0,0.00041217,30]
[404474303,1770179367319,-507.364529,0.0004128,2]
[404474304,1770179367338,-250.0,0.00041644,10]
[404474305,1770179367358,-350.0,0.00042192,10]
[404474306,1770179367377,-254.94367929,0.0004274,10]
[404474307,1770179367396,-713.496437,0.00043124,2]
[404474308,1770179367417,-151.0,0.00044543,120]
[404474309,1770179367440,-185.0,0.00044543,120]
[404474310,1770179367464,-2319.32291457,0.00044543,2]
[404474321,1770179432254,-5802.07769594,0.00032273,2]
[404474566,1770179440226,-294.2181573,0.00027805,2]
[404474567,1770179440236,-6270.22590267,0.00032273,2]
[404474568,1770179440246,-1230.01700663,0.00039823,2]
[404474569,1770179440256,-2000.0,0.00039823,20]
[404474570,1770179440264,-224.15129263,0.00044501,2]
[404474571,1770179440273,-150.0,0.00044897,120]
[404474572,1770179440282,-803.3955485,0.00044897,2]
[404474573,1770179440291,-166.41904567,0.000449,2]
[404474574,1770179440302,-713.496437,0.0004494,2]
[404474575,1770179440311,-1053.79,0.00044988,10]
[404474576,1770179440320,-85518.92975745,0.00044998,2]
[404474577,1770179440329,-151.0,0.00044998,120]
[404474578,1770179440338,-156.0,0.00045,90]
[404474579,1770179440347,-3903.54005773,0.00045248,2]
[404474581,1770179440497,-3e-08,0.00045248,2]
[404474582,1770179440508,-3262.00339794,0.00045248,2]
[404474594,1770179444599,-20.87257349,0.00045248,2]
[404474611,1770179446367,-65.20366727,0.00045248,2]
[404474612,1770179446377,-161.50039358,0.00045486,3]
[404474613,1770179446386,-295.35229146,0.00045486,3]
[404474614,1770179446395,-203.77589804,0.00045836,2]
[404474615,1770179446404,-251.0,0.0004655,120]
[404474616,1770179446414,-166.41904567,0.00046566,2]
[404474617,1770179446423,-741.08018794,0.00046712,2]
[404474618,1770179446433,-713.496437,0.00046755,2]
[404474619,1770179446441,-177.0,0.00046897,120]
[404474620,1770179446451,-156.0,0.00047682,90]
[404474621,1770179446461,-166.41904567,0.00048232,2]
[404474622,1770179446472,-143.87381389,0.00048276,2]
[404474625,1770179976778,1121.0,0.00039822,120]
[404474626,1770180101218,-461.0,0.00016438,2]
[404474627,1770180101239,-500.0,0.00016438,2]
[404474628,1770180101258,-500.0,0.00016438,2]
[404474629,1770180101278,-500.0,0.00016438,2]
[404474630,1770180101298,-500.0,0.00016438,2]
[404474631,1770180101319,-500.0,0.00016438,2]
[404474632,1770180101340,-500.0,0.00016438,2]
[404474633,1770180101360,-500.0,0.00016438,2]
[404474634,1770180101380,-485.4009124,0.00016438,2]
[404474635,1770180115566,-14.5990876,0.00016438,2]
[404474636,1770180115587,-500.0,0.00016438,2]
[404474637,1770180115608,-190.01813508,0.00016438,2]
[404474638,1770180118406,-185.0,0.00016438,2]
[404474639,1770180121117,-94.98186492,0.00016438,2]
[404474640,1770180121144,-194.22311622,0.00016438,2]
[404474641,1770180125477,-305.77688378,0.00016438,2]
[404474642,1770180125499,-146.65033789,0.00016438,2]
[404474643,1770180127632,-353.34966211,0.00016438,2]
[404474644,1770180127653,-49.07755956,0.00016438,2]
[404474645,1770180129771,-347.57277833,0.00016438,2]
[404474646,1770180187899,500.0,0.00013273,2]
[404474647,1770180187945,500.0,0.00013821,2]
[404474648,1770180195303,500.0,0.00013273,2]
[404474649,1770180195352,500.0,0.00013821,2]
[404474650,1770180202822,500.0,0.00013273,2]
[404474651,1770180202851,500.0,0.00013821,2]
[404474652,1770180236040,-520.18653464,0.00016274,2]
[404474653,1770180253256,500.0,0.00013273,2]
[404474654,1770180253467,500.0,0.00013821,2]
[404474655,1770180427098,-2405.01507837,0.00016274,2]
[404474656,1770180427120,-103.34966211,0.00016438,2]
[404474657,1770180427140,-150.0,0.00021918,2]
[404474658,1770180427160,-300.0,0.00022466,2]
[404474659,1770180427179,-450.0,0.00023014,2]
[404474660,1770180427208,-741.63220281,0.00023562,2]
[404474661,1770180427228,-1041.66666667,0.000322,2]
[404474662,1770180427249,-1449.0,0.00032268,3]
[404474663,1770180427269,-616.10740573,0.00033112,7]
[404474664,1770180427291,-500.0,0.00033112,7]
[404474665,1770180427312,-464.59999631,0.00033112,7]
[404474666,1770180427331,-400.0,0.00033112,2]
[404474667,1770180427353,-1261.00968964,0.00033113,2]
[404474668,1770180438115,-828.65459246,0.00033113,2]
[404474669,1770180550108,-300.0,0.00032272,2]
[404474670,1770180550129,-12634.60191418,0.00032273,2]
[404474671,1770180550149,-257.31047694,0.00033013,2]
[404474672,1770180550168,-200.0,0.00035,2]
[404474673,1770180550189,-200.0,0.00035,2]
[404474674,1770180550208,-493.7958009,0.00037833,2]
[404474675,1770180550228,-188.06527168,0.00039441,2]
[404474676,1770180550247,-283.26284019,0.00039821,20]
[404474677,1770180550266,-500.0,0.00039821,2]
[404474678,1770180550285,-500.0,0.00039821,10]
[404474679,1770180550307,-288.95,0.00039821,10]
[404474680,1770180550328,-3336.2246587,0.00042789,2]
[404474681,1770180550347,-468.96250105,0.00045274,2]
[404474682,1770180550365,-646.00157433,0.00045486,3]
[404474683,1770180550388,-150.0,0.00045486,120]
[404474684,1770180550408,-403.0688544,0.00045661,2]
[404474685,1770180550429,-300.0,0.00046466,60]
[404474686,1770180550450,-300.0,0.00046904,90]
[404474687,1770180550468,-300.0,0.00046904,90]
[404474688,1770180550486,-2725.98657842,0.0004705,28]
[404474689,1770180550505,-206.444745,0.0004715,60]
[404474690,1770180550523,-426.75197816,0.0004715,2]
[404474691,1770180550542,-206.444744,0.00047214,60]
[404474692,1770180550562,-741.08018794,0.0004727,2]
[404474693,1770180550581,-177.0,0.00047486,120]
[404474694,1770180550602,-300.0,0.00047562,90]
[404474695,1770180550620,-300.0,0.00047562,90]
[404474696,1770180550641,-250.689288,0.00047681,120]
[404474697,1770180550661,-299.517358,0.00047681,120]
[404474698,1770180550682,-595.445513,0.00047681,28]
[404474699,1770180550701,-595.445513,0.00047681,28]
[404474700,1770180550721,-595.445513,0.00047681,28]
[404474701,1770180550740,-595.445513,0.00047681,28]
[404474702,1770180550758,-456.0,0.00048,120]
[404474703,1770180550776,-3484.34748446,0.00048,120]
[404474704,1770180550896,-595.445513,0.00048,28]
[404474705,1770180550917,-595.445513,0.00048,28]
[404474706,1770180550936,-595.445513,0.00048,28]
[404474707,1770180550954,-595.445513,0.00048,28]
[404474708,1770180550973,-157.0,0.00048,90]
[404474709,1770180550992,-300.0,0.0004811,90]
[404474710,1770180551012,-372.22877251,0.00048269,2]
[404474711,1770180551031,-189.97389224,0.00048276,30]
[404474712,1770180551050,-606.0998806,0.00048356,30]
[404474713,1770180551069,-606.0998806,0.00048356,30]
[404474714,1770180551088,-606.0998806,0.00048356,30]
[404474715,1770180551108,-605.9270658,0.00048356,30]
[404474716,1770180551127,-606.0998806,0.00048356,30]
[404474717,1770180551146,-606.0998806,0.00048356,30]
[404474718,1770180551165,-606.0998806,0.00048356,30]
[404474719,1770180551184,-606.0998806,0.00048356,30]
[404474720,1770180551202,-606.0998806,0.00048356,30]
[404474721,1770180551220,-606.0998806,0.00048356,30]
[404474722,1770180551239,-606.0998806,0.00048356,30]
[404474723,1770180551258,-878.16,0.00048359,10]
[404474724,1770180551276,-731.8,0.00048359,10]
[404474725,1770180551294,-151.0,0.00048369,2]
[404474726,1770180551313,-1000.0,0.00048369,2]
[404474727,1770180551332,-1000.0,0.00048369,2]
[404474728,1770180551351,-1000.0,0.00048369,2]
[404474729,1770180551373,-1000.0,0.00048369,2]
[404474730,1770180551392,-1000.0,0.00048369,2]
[404474731,1770180551411,-1000.0,0.00048369,2]
[404474732,1770180551433,-1000.0,0.00048369,2]
[404474733,1770180551452,-1000.0,0.00048369,2]
[404474734,1770180551472,-1000.0,0.00048369,2]
[404474735,1770180551491,-1000.0,0.00048369,2]
[404474736,1770180551509,-1000.0,0.00048369,2]
[404474737,1770180551528,-250.0,0.00048369,2]
[404474738,1770180551547,-250.0,0.00048369,2]
[404474739,1770180551569,-250.0,0.00048369,2]
[404474740,1770180551590,-1000.0,0.00048369,2]
[404474741,1770180551610,-250.0,0.00048369,2]
[404474742,1770180551630,-1000.0,0.00048369,2]
[404474743,1770180551650,-250.0,0.00048369,2]
[404474744,1770180551671,-1000.0,0.00048369,2]
[404474745,1770180551692,-250.0,0.00048369,2]
[404474746,1770180551714,-1000.0,0.00048369,2]
[404474747,1770180551734,-250.0,0.00048369,2]
[404474748,1770180551755,-639.97323841,0.00048369,2]
[404474749,1770180551782,-250.0,0.00048369,2]
[404474750,1770180551802,-250.0,0.00048369,2]
[404474751,1770180551822,-250.0,0.00048369,2]
[404474752,1770180551865,-250.0,0.00048369,2]
[404474753,1770180551884,-250.0,0.00048369,2]
[404474754,1770180551904,-250.0,0.00048369,2]
[404474755,1770180551922,-250.0,0.00048369,2]
[404474756,1770180551940,-250.0,0.00048369,2]
[404474757,1770180551959,-250.0,0.00048369,2]
[404474758,1770180551979,-250.0,0.00048369,2]
[404474759,1770180551998,-250.0,0.00048369,2]
[404474760,1770180552017,-250.0,0.00048369,2]
[404474761,1770180552035,-250.0,0.00048369,2]
[404474762,1770180552054,-189.30482192,0.00048369,2]
[404474763,1770180552072,-151.0,0.00048369,120]
[404474764,1770180552091,-151.0,0.00048369,2]
[404474765,1770180552112,-3253.196517,0.00048369,120]
[404474766,1770180552132,-3253.196517,0.00048369,120]
[404474767,1770180552152,-3253.196517,0.00048369,120]
[404474768,1770180552172,-3253.196517,0.00048369,120]
[404474769,1770180552193,-3820.445491,0.00048369,120]
[404474770,1770180552213,-3820.445491,0.00048369,120]
[404474771,1770180552233,-3820.445491,0.00048369,120]
[404474772,1770180552252,-3820.445491,0.00048369,120]
[404474773,1770180552273,-151.0,0.00048369,120]
[404474774,1770180552294,-151.747196,0.00048369,120]
[404474775,1770180552313,-151.0,0.00048369,120]
[404474776,1770180552333,-151.0,0.00048369,120]
[404474777,1770180552354,-151.0,0.00048369,120]
[404474778,1770180552372,-151.0,0.00048369,120]
[404474779,1770180552391,-151.0,0.00048369,120]
[404474780,1770180552410,-151.0,0.00048369,120]
[404474781,1770180552429,-151.0,0.00048369,120]
[404474782,1770180552448,-151.0,0.00048369,120]
[404474783,1770180552466,-151.0,0.00048369,120]
[404474784,1770180552485,-151.0,0.00048369,120]
[404474785,1770180552504,-151.0,0.00048369,120]
[404474786,1770180552523,-187.520557,0.00048369,120]
[404474787,1770180552542,-435.658515,0.00048398,90]
[404474788,1770180552563,-435.658515,0.00048398,90]
[404474789,1770180552583,-435.658515,0.00048398,90]
[404474790,1770180552603,-435.658515,0.00048398,90]
[404474791,1770180552625,-1184.754815,0.00048398,120]
[404474792,1770180552644,-1184.754815,0.00048398,120]
[404474793,1770180552664,-1184.754815,0.00048398,120]
[404474794,1770180552683,-1184.754815,0.00048398,120]
[404474795,1770180552704,-595.445513,0.00048398,28]
[404474796,1770180552723,-595.445513,0.00048398,28]
[404474797,1770180552742,-595.445513,0.00048398,28]
[404474798,1770180552761,-595.445513,0.00048398,28]
[404474799,1770180552783,-595.445513,0.00048398,28]
[404474800,1770180552804,-595.445513,0.00048398,28]
[404474801,1770180552823,-595.445513,0.00048398,28]
[404474802,1770180552848,-595.445513,0.00048398,28]
[404474803,1770180552868,-200.307543,0.00048398,120]
[404474804,1770180552887,-151.0,0.00048398,2]
[404474805,1770180552908,-151.0,0.00048398,2]
[404474806,1770180552930,-3253.196517,0.00048398,120]
[404474807,1770180552949,-3253.196517,0.00048398,120]
[404474808,1770180552969,-3253.196517,0.00048398,120]
[404474809,1770180552989,-202.97307952,0.00048398,120]
[404474810,1770180568095,-231.8,0.0004,120]
[404474839,1770180632070,-198.5962811,0.00048298,120]
[404474841,1770180632079,-1041.66666667,0.00048302,2]
[404474842,1770180632089,-352.91,0.00048359,10]
[404474844,1770180632098,-500.0,0.00048369,2]
[404474846,1770180632107,-250.0,0.00048369,2]
[404474848,1770180632116,-500.0,0.00048369,2]
[404474850,1770180632126,-500.0,0.00048369,2]
[404474852,1770180632134,-250.0,0.00048369,2]
[404474854,1770180632143,-229.09746873,0.00048369,2]
[404475215,1770180640766,-3e-08,0.00048369,2]
[404475329,1770180646671,-20.04712961,0.00048369,2]
[404475330,1770180674641,363.76305532,0.00039821,120]
[404475331,1770180693097,573.9748903,0.00041343,2]
[404475332,1770180709203,427.81321884,0.00043873,3]
[404475333,1770180710739,324.67967501,0.00044148,2]
[404475334,1770180721284,1881.70379295,0.00032273,2]
[404475346,1770181654131,-1041.66666667,0.00029464,2]
[404475347,1770181654155,-2129.02291993,0.00029478,2]
[404475348,1770181754084,-12150.62183777,0.00029478,2]
[404475349,1770181754105,-3002.0,0.00029556,2]
[404475350,1770181754126,-158.87702488,0.000332,117]
[404475351,1770181754146,-1000.0,0.00033759,30]
[404475352,1770181754168,-223.999,0.00037588,49]
[404475353,1770181754189,-861.907856,0.00039039,2]
[404475354,1770181754217,-467.7775113,0.0003982,120]
[404475355,1770181754238,-861.907856,0.00040682,2]
[404475356,1770181754258,-20000.0,0.00041,120]
[404475357,1770181754279,-8656.5485708,0.00041343,120]
[404475358,1770181754301,-6605.77575851,0.00042325,2]
[404475359,1770181754321,-861.907856,0.00042325,2]
[404475360,1770181754342,-861.907856,0.00043969,2]
[404475361,1770181810533,1799.99665273,0.0004078,2]
[404475879,1770181882318,975.19551617,0.00032273,2]
[404475880,1770182052148,300.0,0.00013673,2]
[404475889,1770182839126,-170.4237244,0.00030147,120]
[404475890,1770182839149,-11890.52826458,0.00030147,2]
[404475891,1770182842090,-405.5490254,0.00030147,2]
[404475892,1770182873029,227497.14571177,0.00039819,90]
[404475893,1770182900980,13967.7704109,0.00039819,60]
[404475895,1770182945110,-155.0,0.00018,30]
[404475896,1770182945129,-164.32122791,0.00027,30]
[404475897,1770182945151,-3063.9232341,0.00030147,2]
[404475898,1770182950216,-1375.28408658,0.00030147,2]
[404475899,1770182955104,-969.14005469,0.00030147,2]
[404475900,1770182967093,-1030.93965517,0.00030147,2]
[404475901,1770182971102,-6021.58549281,0.00030147,2]
[404475902,1770182971120,-223.29799698,0.00033,30]
[404475903,1770182971139,-1076.43321181,0.000333,120]
[404475904,1770182971157,-3362.06904245,0.00033788,60]
[404475905,1770182971176,-3800.616399,0.0003458,2]
[404475906,1770182971198,-845.882476,0.00035197,2]
[404475907,1770182971219,-3200.01005569,0.00036,2]
[404475908,1770182971241,-1102.00226152,0.00037427,2]
[404475909,1770182971262,-5435.52055996,0.00037524,7]
[404475910,1770182971284,-169.64287333,0.000376,7]
[404475911,1770182971303,-1249.02773412,0.00038875,60]
[404475912,1770182971326,-169.0,0.000398,120]
[404475913,1770182971347,-1786.0,0.00039819,20]
[404475914,1770182971367,-1303.47795837,0.0004078,2]
[404475915,1770182971386,-803.3955487,0.0004078,2]
[404475916,1770182971407,-3336.2246586,0.0004078,2]
[404475917,1770182971427,-170.0,0.00041,120]
[404475918,1770182971447,-159.70375634,0.00041,59]
[404475919,1770182971465,-453.7472989,0.00043398,2]
[404475920,1770182971486,-574.91353264,0.00043498,2]
[404475961,1770183038597,-842.32959226,0.00032273,2]
[404476422,1770183046255,-3000.0,0.00032273,2]
[404476455,1770183129054,500.0,0.00013699,2]
[404476456,1770183130455,500.0,0.00013699,2]
[404476460,1770183803172,10000.0,0.00030137,120]
[404476462,1770184041205,-1853.4073575,0.00032273,2]
[404476463,1770184154095,-973.00884154,0.00032273,2]
[404476464,1770184163102,-902.31277846,0.00032273,2]
[404476465,1770184174246,-9141.84691002,0.00032273,2]
[404476466,1770184174267,-163.56243173,0.00035631,120]
[404476467,1770184174288,-969.4963938,0.00035731,2]
[404476468,1770184174309,-846.9916896,0.00035731,2]
[404476469,1770184174329,-576.7571683,0.00036303,30]
[404476470,1770184174347,-5325.9527164,0.00036617,120]
[404476471,1770184174366,-299.94021788,0.00037427,2]
[404476472,1770184174386,-152.05817635,0.00037427,2]
[404476473,1770184174406,-185.0,0.00039914,120]
[404476474,1770184174426,-428.2040033,0.0004147,2]
[404476475,1770184174447,-40183.50489173,0.0004168,2]
[404476476,1770184174469,-2319.32291457,0.0004168,2]
[404476477,1770184174488,-166.75256721,0.00042625,5]
[404476478,1770184174511,-279.73541243,0.00043497,2]
[404476479,1770184174532,-5028.0,0.000435,120]
[404476480,1770184174552,-583.83899161,0.00043653,2]
[404476481,1770184174572,-362.99783912,0.00043773,2]
[404476482,1770184174595,-495.61632191,0.00043873,3]
[404476483,1770184174617,-741.08018794,0.00044621,2]
[404476484,1770184174637,-88.53964035,0.00044904,2]
[404476486,1770184201954,500.0,0.00030137,120]
[404476517,1770184231680,-2035.55939851,0.00032273,2]
[404476563,1770184237947,-69.04580535,0.00032273,2]
[404476763,1770184240116,-10229.85037171,0.00032273,2]
[404476765,1770184240126,-299.31614309,0.00039818,2]
[404476767,1770184240136,-274.45819876,0.00044904,2]
[404476769,1770184240145,-150.0,0.00044904,120]
[404476771,1770184240154,-168.37607139,0.00045,120]
[404476773,1770184240163,-220.53,0.000456,2]
[404476775,1770184240173,-861.907856,0.00045612,2]
[404476777,1770184240182,-151.0,0.00045969,2]
[404476779,1770184240191,-362.99783911,0.00046035,2]
[404476781,1770184240201,-151.0,0.00046035,2]
[404476783,1770184240210,-151.0,0.00046035,120]
[404476785,1770184240219,-2602.557214,0.00046035,120]
[404476787,1770184240229,-2602.557214,0.00046035,120]
[404476789,1770184240238,-2602.557214,0.00046035,120]
[404476791,1770184240247,-2602.557214,0.00046035,120]
[404476793,1770184240256,-3558.410879,0.00046035,120]
[404476795,1770184240266,-3558.410879,0.00046035,120]
[404476797,1770184240275,-3558.410879,0.00046035,120]
[404476799,1770184240284,-3558.410879,0.00046035,120]
[404476801,1770184240293,-209.61290894,0.00046229,18]
[404476803,1770184240302,-151.0,0.00046229,120]
[404476805,1770184240311,-151.0,0.00046229,120]
[404476807,1770184240321,-151.0,0.00046229,120]
[404476809,1770184240330,-151.0,0.00046229,120]
[404476811,1770184240339,-151.0,0.00046229,2]
[404476813,1770184240348,-151.0,0.00046229,120]
[404476815,1770184240357,-2602.557214,0.00046229,120]
[404476817,1770184240367,-2602.557214,0.00046229,120]
[404476819,1770184240376,-2602.557214,0.00046229,120]
[404476820,1770184240385,-2602.557214,0.00046229,120]
[404476821,1770184240393,-3558.410879,0.00046229,120]
[404476822,1770184240402,-3558.410879,0.00046229,120]
[404476823,1770184240411,-3558.410879,0.00046229,120]
[404476824,1770184240420,-3558.410879,0.00046229,120]
[404476825,1770184240430,-151.0,0.00046229,120]
[404476826,1770184240439,-151.747196,0.00046229,120]
[404476827,1770184240448,-4333.67408039,0.00046309,4]
[404476828,1770184240458,-265.73,0.00046309,10]
[404476829,1770184240467,-506.73,0.00046309,10]
[404476830,1770184240475,-422.27,0.00046309,10]
[404476831,1770184240486,-151.0,0.00046309,2]
[404476832,1770184240495,-151.0,0.00046309,120]
[404476833,1770184240505,-2602.557214,0.00046309,120]
[404476834,1770184240514,-2602.557214,0.00046309,120]
[404476835,1770184240523,-2602.557214,0.00046309,120]
[404476836,1770184240533,-2602.557214,0.00046309,120]
[404476837,1770184240542,-2248.70123609,0.00046309,120]
[404477358,1770184246002,-7.50396736,0.00046229,120]
[404477589,1770184453059,500.0,0.00013273,2]
[404477590,1770184453092,383.91445314,0.00013821,2]
[404477596,1770185250137,-3089.17258085,0.00031901,2]
[404477597,1770185356090,-968.48261633,0.00031901,2]
[404477598,1770185374149,-8212.81614957,0.00031901,2]
[404477599,1770185374170,-2106.0,0.00032,2]
[404477600,1770185374191,-2924.48694339,0.00032219,2]
[404477601,1770185374212,-163.5624317,0.000332,117]
[404477602,1770185374233,-6201.0,0.00035,30]
[404477603,1770185374253,-219.71683155,0.00040182,2]
[404477604,1770185374273,-246.63281092,0.00040623,2]
[404477605,1770185374294,-220.79021521,0.00043873,3]
[404477606,1770185374314,-166.1008451,0.00044107,2]
[404477607,1770185374336,-276.3255454,0.00044107,2]
[404477608,1770185374357,-182.78885729,0.00044523,2]
[404477609,1770185374379,-376.13738716,0.00044523,2]
[404477610,1770185374401,-676.3702496,0.00044523,2]
[404477611,1770185374428,-157.21937645,0.00044523,2]
[404477612,1770185374450,-167.56400261,0.00044523,2]
[404477613,1770185374470,-670.25601044,0.00044523,2]
[404477614,1770185374503,-8.77485306,0.00044523,2]
[404477645,1770185432004,-5498.56453901,0.00032273,2]
[404477646,1770185432015,-5088.46207059,0.00032273,2]
[404477651,1770185439566,-1614.247273,0.00032273,2]
[404477652,1770185439577,-458.09757779,0.00044523,2]
[404477653,1770185439586,-166.93963418,0.00044523,2]
[404477654,1770185439596,-3939.14461842,0.00044589,2]
[404477655,1770185439605,-240.85120019,0.00044712,3]
[404477656,1770185439615,-207.15964897,0.00044713,3]
[404477657,1770185439625,-633.262333,0.00044885,2]
[404477658,1770185439635,-197.0,0.00045,120]
[404477659,1770185439645,-957.26491239,0.00045282,15]
[404477660,1770185439655,-151.0,0.00045679,2]
[404477661,1770185439664,-150.0,0.00046,120]
[404477662,1770185439675,-741.08018794,0.00046025,2]
[404477663,1770185439685,-883.16086082,0.00046097,3]
[404477664,1770185439695,-282.71188273,0.00046175,2]
[404477665,1770185439705,-328.69092317,0.00046179,2]
[404477666,1770185439714,-219.64489017,0.00046207,2]
[404477667,1770185439724,-209.61290886,0.00046207,18]
[404477668,1770185439733,-232.689232,0.00046227,2]
[404477669,1770185439743,-150.0,0.00046227,120]
[404477670,1770185439753,-151.0,0.00046297,60]
[404477671,1770185439763,-151.0,0.00046297,60]
[404477672,1770185439772,-151.0,0.00046297,60]
[404477673,1770185439782,-151.0,0.00046297,120]
[404477674,1770185439792,-620.22,0.00046297,10]